bitfinex-derivatives/quotes_SOLF0:USTF0_20250924
["timestamp","ask_amount","ask_price","bid_price","bid_amount"]
[1758713878338,4.2418,212.1,212.09,3.62515592]
[1758713878934,4.2415,212.12,212.09,9.88515592]
[1758713879130,4.2415,212.12,212.1,3.62515592]
[1758713879342,4.2415,212.12,212.11,3.62515592]
[1758713880344,11.4615,212.12,212.11,3.62515592]
[1758713880739,11.462,212.09,212.08,172.21599408]
[1758713881042,11.462,212.09,212.08,175.84366155]
[1758713882044,7.22,212.09,212.08,175.84366155]
[1758713882645,65.9724,212.14,212.08,175.84366155]
[1758713882845,7.22,212.13,212.09,3.62766747]
[1758713883046,11.4618,212.1,212.08,172.21599408]
[1758713883346,4.2418,212.1,212.08,172.21599408]
[1758713883744,7.22,212.09,212.08,172.21599408]
[1758713883944,7.22,212.09,212.08,175.84272765]
[1758713884447,4.2418,212.1,212.08,175.84272765]
[1758713884640,4.2418,212.1,212.08,172.21599408]
[1758713885949,11.4618,212.1,212.08,172.21599408]
[1758713886645,4.2418,212.1,212.09,9.87741418]
[1758713887149,4.2415,212.12,212.09,9.87741418]
[1758713887448,4.2415,212.12,212.1,3.61741418]
[1758713887648,4.2415,212.12,212.09,6.26]
[1758713887844,4.2411,212.14,212.11,6.26]
[1758713888052,65.9628,212.17,212.09,6.26]
[1758713888348,65.9472,212.22,212.11,6.26]
[1758713888542,65.9472,212.22,212.12,3.61596435]
[1758713888741,65.9472,212.22,212.13,3.61596435]
[1758713888942,65.9472,212.22,212.14,3.61596435]
[1758713889244,4.2404,212.17,212.15,3.61596435]
[1758713889444,65.9509,212.21,212.12,6.26]
[1758713889646,4.2408,212.16,212.13,3.61474258]
[1758713889846,4.2408,212.16,212.14,3.61474258]
[1758713890045,65.9636,212.17,212.1,6.26]
[1758713890249,65.9636,212.17,212.11,3.61656553]
[1758713890451,7.22,212.16,212.12,3.61656553]
[1758713890747,7.22,212.16,212.13,3.6181242]
[1758713890942,4.2412,212.14,212.12,6.26]
[1758713891148,4.2412,212.14,212.13,3.61842428]
[1758713892140,4.2415,212.12,212.08,172.21599408]
[1758713892347,4.2415,212.12,212.09,9.87917228]
[1758713892550,4.2415,212.12,212.1,3.61917228]
[1758713892753,4.2409,212.15,212.11,3.61917228]
[1758713892950,4.2409,212.15,212.13,6.26]
[1758713894349,65.9631,212.17,212.11,6.99572374]
[1758713894553,7.22,212.16,212.12,3.62047333]
[1758713894753,7.22,212.16,212.11,6.99572374]
[1758713894952,65.9631,212.17,212.12,3.62130393]
[1758713895151,73.1831,212.17,212.13,3.62289716]
[1758713895352,73.1831,212.17,212.11,6.99572374]
[1758713895353,7.22,212.14,212.11,0.73572374]
[1758713895553,7.22,212.13,212.11,0.73572374]
[1758713896851,7.22,212.14,212.11,0.73572374]
[1758713897050,7.22,212.13,212.11,0.73572374]
[1758713897257,4.2414,212.12,212.11,0.73572374]
[1758713898155,4.2411,212.14,212.11,4.36013366]
[1758713898457,4.2411,212.14,212.13,6.26]
[1758713898757,4.2411,212.14,212.13,9.88440992]
[1758713899258,4.2411,212.14,212.13,3.62440992]
[1758713899858,4.2406,212.16,212.13,9.88440992]
[1758713900052,4.2406,212.16,212.14,3.62440992]
[1758713900256,4.2406,212.16,212.13,6.26]
[1758713900554,4.2406,212.16,212.14,3.6245945]
[1758713900756,4.2406,212.16,212.13,6.26]
[1758713900958,4.2406,212.16,212.14,3.6245945]
[1758713901258,4.241,212.15,212.13,6.26]
[1758713901460,11.461,212.15,212.14,3.62512674]
[1758713901662,4.2414,212.13,212.11,0.73572374]
[1758713901852,4.2414,212.13,212.12,3.62557786]
[1758713902763,7.22,212.12,212.11,0.73572374]
[1758713903061,7.22,212.12,212.11,4.36228986]
[1758713903261,4.2414,212.13,212.11,4.36228986]
[1758713903462,11.4614,212.13,212.11,0.73572374]
[1758713906556,4.242,212.09,212.08,172.21599408]
[1758713906755,11.482,212.09,212.08,175.84509131]
[1758713909559,11.482,212.09,212.08,172.21599408]
[1758713910071,4.2432,212.04,212.02,6.26]
[1758713910266,4.2432,212.04,212.03,3.63145912]
[1758713910858,11.4832,212.04,212.03,3.63145912]
[1758713918478,11.4832,212.04,212.03,3.63145912]
[1758713919277,4.244,211.99,211.98,124.89267274]
[1758713919473,4.244,211.99,211.98,128.55241568]
[1758713920377,4.2437,212.01,211.98,136.16841699]
[1758713920576,11.4837,212.01,211.99,3.65974294]
[1758713920772,11.4837,212.01,212.0,3.65974294]
[1758713922980,4.244,211.99,211.98,124.89267274]
[1758713923282,4.244,211.99,211.98,128.55159091]
[1758713925382,11.484,211.99,211.98,124.89267274]
[1758713926176,4.244,211.99,211.98,124.89267274]
[1758713928478,11.484,211.99,211.98,124.89267274]
[1758713930072,4.2447,211.96,211.91,1.35600131]
[1758713930274,73.259,211.99,211.92,3.6524183]
[1758713930473,74.61500131,211.99,211.93,3.6524183]
[1758713930779,4.245,211.95,211.89,6.26]
[1758713931080,4.245,211.95,211.9,3.65190439]
[1758713931376,4.245,211.95,211.91,3.65190439]
[1758713931584,4.245,211.95,211.93,6.26]
[1758713931779,4.245,211.95,211.94,3.65190439]
[1758713932184,4.245,211.95,211.93,6.26]
[1758713934083,4.2461,211.89,211.88,6.27]
[1758713934277,4.2461,211.89,211.88,9.92272535]
[1758713934889,4.2461,211.89,211.88,6.27]
[1758713935094,4.2471,211.84,211.82,15.26835924]
[1758713935282,4.2471,211.84,211.83,3.65688985]
[1758713936387,4.2471,211.84,211.81,1.35600131]
[1758713936588,4.2471,211.84,211.82,3.65238573]
[1758713936785,4.2474,211.83,211.81,1.35600131]
[1758713936983,4.2474,211.83,211.82,3.65238573]
[1758713937381,4.2478,211.81,211.75,3.8650192]
[1758713937582,7.59,211.85,211.77,1.35600131]
[1758713937778,66.0661,211.84,211.77,1.35600131]
[1758713937984,66.0693,211.83,211.77,1.35600131]
[1758713938189,66.0693,211.83,211.73,406.90770329]
[1758713938384,4.2482,211.79,211.75,1.35600131]
[1758713938588,4.2482,211.79,211.73,408.2637046]
[1758713938890,4.2482,211.79,211.74,3.64999511]
[1758713939189,4.2485,211.77,211.75,3.64999511]
[1758713939386,73.8939,211.82,211.74,1.35600131]
[1758713939882,4.248,211.79,211.73,406.90770329]
[1758713940083,1.35600131,211.86,211.76,1.35600131]
[1758713940284,7.82,211.87,211.77,3.6473891]
[1758713940484,4.2466,211.86,211.79,1.35600131]
[1758713940689,4.2466,211.86,211.8,3.64553058]
[1758713940991,4.2466,211.86,211.81,3.6451732]
[1758713941185,4.2466,211.86,211.79,1.35600131]
[1758713941382,4.2466,211.86,211.8,3.64521571]
[1758713941578,4.2463,211.88,211.79,1.35600131]
[1758713941792,4.2463,211.88,211.8,3.64403505]
[1758713941984,4.2463,211.88,211.82,1.35600131]
[1758713942291,12.0658,211.91,211.85,1.35600131]
[1758713942591,1.35600131,211.94,211.84,1.35600131]
[1758713942788,12.0661,211.89,211.84,1.35600131]
[1758713942983,4.2461,211.89,211.84,1.35600131]
[1758713943183,7.82,211.93,211.84,1.35600131]
[1758713943384,7.82,211.93,211.85,3.64136344]
[1758713943591,7.82,211.97,211.87,1.35600131]
[1758713944084,4.2453,211.93,211.87,1.35600131]
[1758713944284,73.8549,211.94,211.87,1.35600131]
[1758713944483,7.82,211.92,211.84,1.35600131]
[1758713944680,4.2464,211.88,211.85,3.64380342]
[1758713944885,4.2464,211.88,211.84,1.35600131]
[1758713945091,7.82,211.88,211.84,1.35600131]
[1758713945285,7.82,211.92,211.84,1.35600131]
[1758713945690,7.82,211.92,211.87,1.35600131]
[1758713945991,73.8486,211.96,211.87,1.35600131]
[1758713946193,7.82,211.96,211.9,1.35600131]
[1758713946388,66.0162,212.0,211.92,1.35600131]
[1758713946685,66.0192,211.99,211.92,1.35600131]
[1758713946891,4.2444,211.97,211.92,1.35600131]
[1758713947094,73.8365,212.0,211.92,1.35600131]
[1758713947687,66.0068,212.03,211.98,1.35600131]
[1758713947988,7.82,212.02,211.98,1.35600131]
[1758713948187,7.82,212.01,211.98,1.35600131]
[1758713948392,7.82,212.02,211.98,1.35600131]
[1758713948887,4.2439,212.0,211.98,1.35600131]
[1758713949090,73.8362,212.0,211.9,3.8650192]
[1758713949398,4.2451,211.94,211.91,3.66565107]
[1758713949590,7.82,211.97,211.93,1.35600131]
[1758713949888,66.0047,212.04,211.96,1.35600131]
[1758713950693,4.244,212.0,211.96,1.35600131]
[1758713950896,4.244,212.0,211.99,1.35600131]
[1758713951292,66.0145,212.01,211.95,1.35600131]
[1758713951494,7.82,211.99,211.92,1.35600131]
[1758713951696,7.82,211.99,211.93,3.67036742]
[1758713951891,7.82,211.99,211.94,3.67036742]
[1758713952196,4.244,211.99,211.95,5.02636873]
[1758713952383,73.8275,212.03,211.96,3.67041305]
[1758713952384,7.82,212.03,211.96,3.67041305]
[1758713952584,7.82,212.03,211.98,1.35600131]
[1758713952788,7.82,212.03,211.99,3.67041305]
[1758713952987,7.82,212.03,211.98,1.35600131]
[1758713953192,4.2437,212.01,211.99,3.66950199]
[1758713953492,4.2437,212.01,211.98,1.35600131]
[1758713953689,65.9984,212.06,211.99,3.6706127]
[1758713953890,7.82,212.05,211.96,1.35600131]
[1758713954196,7.82,212.05,211.97,3.67071643]
[1758713954387,4.2437,212.01,211.96,1.35600131]
[1758713954592,66.0045,212.04,211.97,3.671785]
[1758713954790,7.82,211.99,211.93,1.35600131]
[1758713954994,7.82,211.97,211.94,7.24e-06]
[1758713955293,7.82,211.97,211.9,1.35600131]
[1758713955690,66.0289,211.96,211.88,3.90068033]
[1758713956090,66.0323,211.95,211.87,3.90068033]
[1758713956291,66.0323,211.95,211.78,14.14]
[1758713956292,73.8552,211.94,211.86,5.25668164]
[1758713956497,66.0376,211.93,211.86,5.25668164]
[1758713956899,4.246,211.9,211.86,5.25668164]
[1758713957490,4.2462,211.89,211.86,1.35600131]
[1758713957697,4.2462,211.89,211.83,5.25668164]
[1758713958787,12.0655,211.92,211.84,4.63888064]
[1758713958995,7.82,211.92,211.84,4.63888064]
[1758713959393,12.0656,211.92,211.86,3.90068033]
[1758713959790,7.82,211.92,211.86,3.90068033]
[1758713960394,4.246,211.9,211.86,3.90068033]
[1758713961109,7.82,211.88,211.84,4.63888064]
[1758713961710,4.2462,211.89,211.84,4.63888064]
[1758713961905,4.2464,211.87,211.84,0.73820031]
[1758713962210,7.82,211.86,211.84,0.73820031]
[1758713962412,4.2468,211.85,211.81,3.90068033]
[1758713962610,12.0668,211.85,211.8,3.90068033]
[1758713963908,7.82,211.85,211.8,3.90068033]
[1758713964105,7.61,211.92,211.8,3.90068033]
[1758713964305,7.61,211.92,211.83,3.90068033]
[1758713964507,4.2461,211.89,211.83,3.90068033]
[1758713964706,7.61,211.92,211.83,3.90068033]
[1758713965413,4.2458,211.9,211.83,3.90068033]
[1758713965719,7.61,211.97,211.86,6.02552867]
[1758713966206,4.245,211.94,211.86,6.02552867]
[1758713967005,4.245,211.94,211.87,3.66640564]
[1758713967209,4.245,211.94,211.88,3.66640564]
[1758713967413,7.61,211.93,211.89,3.66640564]
[1758713967609,7.61,211.93,211.9,3.66640564]
[1758713967810,4.245,211.94,211.86,6.02552867]
[1758713968010,4.245,211.94,211.87,3.66711845]
[1758713968210,4.245,211.94,211.88,3.66711845]
[1758713968408,7.61,211.93,211.89,3.66711845]
[1758713968609,7.61,211.93,211.9,3.66711845]
[1758713968809,7.61,211.93,211.86,6.02552867]
[1758713969106,7.61,211.93,211.87,3.66761104]
[1758713969310,7.61,211.93,211.88,3.66761104]
[1758713969509,7.61,211.93,211.89,3.66761104]
[1758713969715,7.61,211.93,211.9,3.66761104]
[1758713969906,7.61,211.93,211.86,6.02552867]
[1758713970112,7.61,211.93,211.87,3.66784213]
[1758713970309,7.61,211.93,211.88,3.66784213]
[1758713970509,7.61,211.93,211.89,3.66784213]
[1758713970709,7.61,211.93,211.9,3.66784213]
[1758713971014,7.61,211.93,211.85,0.74251508]
[1758713971212,66.0413,211.92,211.86,3.66881891]
[1758713971414,66.0472,211.9,211.87,3.66881891]
[1758713971718,11.8566,211.86,211.85,0.74251508]
[1758713971917,11.8566,211.86,211.85,4.41311518]
[1758713975113,4.2474,211.82,211.81,124.08970746]
[1758713975514,7.61,211.89,211.81,124.08970746]
[1758713975814,4.247,211.84,211.81,124.08970746]
[1758713976215,11.857,211.84,211.81,124.08970746]
[1758713976418,4.247,211.84,211.81,124.08970746]
[1758713976616,11.857,211.84,211.81,124.08970746]
[1758713978618,4.2474,211.82,211.81,124.08970746]
[1758713979215,4.2471,211.84,211.81,124.08970746]
[1758713979419,11.8571,211.84,211.81,124.08970746]
[1758713980116,4.2471,211.84,211.81,124.08970746]
[1758713982124,4.2466,211.87,211.81,124.08970746]
[1758713982321,4.2466,211.87,211.81,128.00935562]
[1758713982623,4.2466,211.87,211.83,3.91964816]
[1758713983326,11.8566,211.87,211.83,3.91964816]
[1758713983825,4.2468,211.86,211.82,3.91964816]
[1758713984422,4.2468,211.86,211.83,3.91964816]
[1758713987121,4.2468,211.86,211.84,3.71018283]
[1758713987429,4.2468,211.86,211.85,3.71018283]
[1758713991926,11.8568,211.86,211.85,3.71018283]
[1758713992534,4.2468,211.86,211.85,3.71018283]
[1758713994230,7.61,211.91,211.85,7.62983099]
[1758713994430,7.61,211.91,211.87,3.91964816]
[1758713994728,7.8,211.89,211.88,3.71018283]
[1758713994928,7.8,211.89,211.88,8.283e-05]
[1758714001331,7.6,211.87,211.86,3.099e-05]
[1758714001532,7.6,211.85,211.82,0.7522528]
[1758714001734,7.6,211.84,211.82,0.7522528]
[1758714002534,7.6,211.85,211.82,0.7522528]
[1758714003034,4.2472,211.83,211.81,129.4006505]
[1758714003336,7.6,211.82,211.81,124.08970746]
[1758714003540,4.2472,211.83,211.81,129.4006505]
[1758714004733,4.2467,211.86,211.81,129.4006505]
[1758714004927,7.6,211.91,211.83,5.31094304]
[1758714005334,7.6,211.85,211.81,247.4206505]
[1758714005633,7.6,211.86,211.81,242.10970746]
[1758714006136,7.6,211.82,211.81,242.10970746]
[1758714006631,7.6,211.82,211.81,124.08970746]
[1758714008935,4.2472,211.83,211.81,124.08970746]
[1758714012041,11.8472,211.83,211.81,124.08970746]
[1758714013439,11.8472,211.83,211.82,3.67662787]
[1758714013640,11.8472,211.83,211.82,2.787e-05]
[1758714013842,7.6,211.82,211.81,116.58343533]
[1758714014643,11.8472,211.83,211.81,116.58343533]
[1758714014940,7.6,211.82,211.81,116.58343533]
[1758714015242,7.6,211.82,211.81,101.83993533]
[1758714015441,7.6,211.82,211.81,80.37303533]
[1758714015641,7.6,211.82,211.81,58.98443533]
[1758714017239,7.6,211.82,211.81,51.57553533]
[1758714017442,7.6,211.82,211.81,35.71053533]
[1758714017642,7.6,211.82,211.81,12.31223533]
[1758714018344,11.8472,211.83,211.81,12.31223533]
[1758714020545,4.2476,211.81,211.8,118.02]
[1758714021745,11.8476,211.81,211.8,118.02]
[1758714022448,4.2482,211.79,211.77,118.0]
[1758714025946,4.2482,211.79,211.78,3.65616215]
[1758714026946,4.2476,211.81,211.78,3.65616215]
[1758714027146,4.2476,211.81,211.79,3.65616215]
[1758714027347,4.2476,211.81,211.8,3.65616215]
[1758714027649,4.2482,211.78,211.77,240.16878689]
[1758714029550,4.2482,211.78,211.77,122.16878689]
[1758714029849,12.0682,211.78,211.77,99.89388689]
[1758714030356,8.3,211.78,211.7,117.98]
[1758714030655,1.3607354,211.77,211.7,117.98]
[1758714031850,4.2495,211.72,211.7,117.98]
[1758714032046,7.82,211.75,211.63,5.31094304]
[1758714032246,7.82,211.75,211.66,1.3607354]
[1758714032846,4.25,211.7,211.66,1.3607354]
[1758714033150,66.1008,211.73,211.64,117.98]
[1758714033452,7.82,211.72,211.64,119.3407354]
[1758714034155,75.2715354,211.76,211.67,1.3607354]
[1758714035260,66.0952,211.75,211.67,1.3607354]
[1758714036956,66.0952,211.75,211.64,122.2309]
[1758714037157,66.0952,211.75,211.66,1.3607354]
[1758714037463,9.1807354,211.76,211.66,5.6113354]
[1758714037959,7.82,211.76,211.69,1.3607354]
[1758714038656,4.2492,211.74,211.69,1.3607354]
[1758714038855,7.82,211.76,211.69,1.3607354]
[1758714040263,4.2494,211.73,211.69,1.3607354]
[1758714041063,4.2488,211.75,211.69,1.3607354]
[1758714041962,4.2492,211.74,211.69,1.3607354]
[1758714042761,7.82,211.76,211.69,1.3607354]
[1758714042958,7.82,211.76,211.67,1.3607354]
[1758714043562,4.2498,211.71,211.67,1.3607354]
[1758714043760,12.0698,211.71,211.67,1.3607354]
[1758714044156,7.82,211.69,211.67,1.3607354]
[1758714044759,7.82,211.75,211.67,1.3607354]
[1758714046464,12.0698,211.71,211.67,1.3607354]
[1758714047969,12.0699,211.7,211.67,1.3607354]
[1758714048356,1.3607354,211.76,211.64,122.2309]
[1758714048357,7.82,211.71,211.64,117.98]
[1758714048562,66.1035,211.72,211.64,117.98]
[1758714048961,66.1065,211.71,211.64,117.98]
[1758714049167,7.82,211.7,211.64,117.98]
[1758714049360,7.82,211.68,211.64,117.98]
[1758714049559,7.82,211.72,211.64,117.98]
[1758714050068,4.2504,211.68,211.64,117.98]
[1758714050266,7.82,211.67,211.64,117.98]
[1758714050470,7.82,211.76,211.66,1.3607354]
[1758714050770,7.82,211.76,211.69,1.3607354]
[1758714050961,9.1807354,211.8,211.69,1.3607354]
[1758714052063,4.2487,211.76,211.72,1.3607354]
[1758714052460,7.82,211.8,211.72,1.3607354]
[1758714053759,7.82,211.8,211.69,4.28]
[1758714053960,7.82,211.8,211.72,1.3607354]
[1758714054161,67.4351354,211.82,211.69,1.3607354]
[1758714054162,7.79,211.72,211.69,1.3607354]
[1758714054568,4.2494,211.73,211.7,0.03]
[1758714055671,12.0394,211.73,211.69,1.3607354]
[1758714055877,4.2494,211.73,211.69,1.3607354]
[1758714056078,7.79,211.71,211.66,1.3907354]
[1758714056375,7.79,211.76,211.68,1.3607354]
[1758714056773,4.2491,211.74,211.68,1.3607354]
[1758714056965,7.79,211.76,211.68,1.3607354]
[1758714056966,7.79,211.78,211.71,1.3607354]
[1758714057975,7.79,211.74,211.71,1.3607354]
[1758714058175,7.79,211.78,211.71,1.3607354]
[1758714060178,4.2485,211.77,211.71,1.3907354]
[1758714061583,11.7081,211.79,211.74,1.3607354]
[1758714061879,7.46,211.79,211.73,1.3607354]
[1758714062182,11.7092,211.73,211.69,5.28798514]
[1758714062882,11.7092,211.73,211.69,5.31798514]
[1758714064283,4.2488,211.76,211.7,0.03]
[1758714064483,4.2488,211.76,211.7,3.95724974]
[1758714067282,7.46,211.75,211.71,3.92724974]
[1758714067684,11.7088,211.76,211.7,3.95724974]
[1758714067882,11.7088,211.76,211.7,0.03]
[1758714068384,11.7088,211.76,211.7,3.95724974]
[1758714069186,11.7083,211.78,211.71,1.3607354]
[1758714069381,11.7083,211.78,211.71,5.28798514]
[1758714070389,11.7083,211.78,211.72,3.92724974]
[1758714071487,11.7083,211.78,211.72,3.93436961]
[1758714072289,7.46,211.78,211.72,3.93436961]
[1758714073179,1.3607354,211.82,211.73,3.93436961]
[1758714073384,7.46,211.81,211.73,3.93436961]
[1758714073580,7.46,211.78,211.71,5.29510501]
[1758714074085,7.46,211.78,211.71,1.3607354]
[1758714074282,7.46,211.78,211.67,3.96436961]
[1758714074283,7.46,211.78,211.68,1.3607354]
[1758714075387,7.46,211.74,211.68,1.3607354]
[1758714075594,4.249,211.75,211.69,3.65701771]
[1758714075891,7.46,211.74,211.7,3.65701771]
[1758714076087,7.46,211.76,211.71,3.65701771]
[1758714076284,1.3607354,211.75,211.72,3.65701771]
[1758714076485,7.46,211.74,211.73,3.65701771]
[1758714077189,11.7092,211.74,211.73,3.65701771]
[1758714078589,4.25,211.7,211.65,4.68125839]
[1758714078890,7.46,211.73,211.66,0.03]
[1758714079286,7.46,211.73,211.66,3.96436961]
[1758714079597,8.8207354,211.77,211.68,0.03]
[1758714079788,8.8207354,211.77,211.68,1.3907354]
[1758714081394,4.2488,211.76,211.69,4.25]
[1758714081599,7.46,211.77,211.69,4.25]
[1758714083096,7.46,211.77,211.68,5.32510501]
[1758714083287,8.8207354,211.77,211.68,3.96436961]
[1758714083495,8.8207354,211.77,211.68,0.03]
[1758714084088,8.8207354,211.77,211.69,3.93436961]
[1758714084489,7.46,211.77,211.69,5.29510501]
[1758714084795,4.2488,211.76,211.69,5.29510501]
[1758714085689,4.2488,211.76,211.7,3.93436961]
[1758714086596,4.2488,211.76,211.69,3.93436961]
[1758714087391,4.249,211.75,211.69,3.93436961]
[1758714087592,7.95,211.77,211.69,3.93436961]
[1758714087795,66.092,211.76,211.68,3.93436961]
[1758714088092,4.2498,211.71,211.67,3.93436961]
[1758714088595,4.2498,211.71,211.66,3.93436961]
[1758714088794,7.95,211.7,211.66,3.93436961]
[1758714089392,4.2498,211.71,211.66,3.93436961]
[1758714089786,7.95,211.7,211.66,3.93436961]
[1758714089988,4.2498,211.71,211.66,3.93436961]
[1758714090189,7.95,211.73,211.65,3.93436961]
[1758714090393,7.95,211.73,211.66,3.93436961]
[1758714090697,7.95,211.73,211.67,3.65989205]
[1758714090898,7.95,211.73,211.68,3.65989205]
[1758714091198,66.0982,211.74,211.69,3.65989205]
[1758714091500,7.95,211.71,211.7,3.65989205]
[1758714104202,12.1991,211.74,211.7,3.68989205]
[1758714104401,7.95,211.73,211.71,3.65989205]
[1758714104596,7.95,211.73,211.72,3.65989205]
[1758714112014,66.0789,211.8,211.72,3.65989205]
[1758714112220,7.95,211.78,211.74,0.03]
[1758714112516,66.0753,211.81,211.75,3.65989205]
[1758714112717,66.0753,211.81,211.76,3.65989205]
[1758714112911,66.0753,211.81,211.77,3.65989205]
[1758714113116,7.95,211.8,211.78,3.65989205]
[1758714113318,4.2488,211.76,211.7,8.18406961]
[1758714113520,4.2488,211.76,211.71,3.66943456]
[1758714113720,4.2488,211.76,211.73,0.04]
[1758714113921,4.2488,211.76,211.74,3.66943456]
[1758714114117,4.2488,211.76,211.75,3.66943456]
[1758714114622,11.5883,211.78,211.75,3.66943456]
[1758714114824,7.34,211.81,211.76,3.66943456]
[1758714115117,7.34,211.81,211.77,3.66943456]
[1758714115423,7.34,211.79,211.78,3.66943456]
[1758714117022,7.34,211.86,211.78,3.66943456]
[1758714117325,66.0634,211.85,211.79,3.66943456]
[1758714117623,7.34,211.86,211.8,3.66943456]
[1758714117820,66.0628,211.85,211.81,3.66943456]
[1758714118013,66.0628,211.85,211.82,3.66943456]
[1758714118213,4.2481,211.79,211.74,3.93436961]
[1758714118415,4.2481,211.79,211.76,0.04]
[1758714118618,4.2481,211.79,211.78,0.04]
[1758714118813,4.2481,211.79,211.78,3.70821841]
[1758714119019,4.2476,211.82,211.78,3.66821841]
[1758714119225,125.0,211.88,211.79,3.66821841]
[1758714119427,7.34,211.88,211.8,3.69821841]
[1758714119622,7.34,211.88,211.81,3.66821841]
[1758714119918,4.2471,211.84,211.82,3.66821841]
[1758714120124,73.8199,211.83,211.75,0.03]
[1758714120321,73.8199,211.83,211.76,3.66798656]
[1758714120516,73.8199,211.83,211.77,3.66798656]
[1758714120713,7.75,211.82,211.78,3.66798656]
[1758714120916,4.2478,211.8,211.79,3.66798656]
[1758714121112,11.9978,211.8,211.79,3.66798656]
[1758714122128,7.75,211.8,211.73,3.93436961]
[1758714122421,4.2491,211.74,211.7,0.03]
[1758714122621,7.75,211.77,211.7,0.03]
[1758714122920,4.2485,211.77,211.72,3.96436961]
[1758714123125,7.75,211.81,211.72,0.03]
[1758714123318,7.75,211.81,211.73,0.03]
[1758714123920,7.75,211.81,211.73,2.15713189]
[1758714124223,7.75,211.81,211.74,0.03]
[1758714125322,11.9977,211.81,211.74,0.03]
[1758714128424,7.75,211.81,211.75,4.2488]
[1758714128718,66.0574,211.87,211.76,0.03]
[1758714128923,11.9976,211.82,211.76,0.03]
[1758714133133,7.75,211.82,211.76,0.03]
[1758714134232,7.75,211.82,211.78,0.03]
[1758714134427,7.75,211.84,211.8,0.03]
[1758714134626,7.75,211.84,211.81,3.65080795]
[1758714134822,7.75,211.84,211.82,3.65080795]
[1758714135024,7.75,211.91,211.83,3.65080795]
[1758714135227,7.75,211.91,211.84,3.65080795]
[1758714135427,7.75,211.91,211.85,3.65080795]
[1758714135635,7.75,211.91,211.8,0.03]
[1758714135835,7.75,211.91,211.81,3.64859321]
[1758714136136,4.2466,211.87,211.82,3.64859321]
[1758714136329,7.75,211.92,211.83,3.64859321]
[1758714136530,7.75,211.92,211.84,3.64859321]
[1758714136832,4.2461,211.89,211.85,3.64859321]
[1758714137028,7.75,211.88,211.82,0.03]
[1758714137232,7.75,211.92,211.83,3.64753303]
[1758714137435,7.75,211.92,211.84,3.64753303]
[1758714137631,7.75,211.92,211.85,3.64753303]
[1758714137827,7.75,211.92,211.86,3.64621969]
[1758714138032,66.0441,211.91,211.78,24.03]
[1758714138234,66.0575,211.87,211.79,3.64728419]
[1758714138433,7.75,211.86,211.8,3.64728419]
[1758714138634,7.75,211.86,211.81,3.64728419]
[1758714138832,7.75,211.86,211.82,3.64728419]
[1758714139026,7.75,211.86,211.77,2.12713189]
[1758714139226,7.75,211.86,211.78,3.64760804]
[1758714139530,7.75,211.89,211.8,0.03]
[1758714139733,7.75,211.89,211.82,0.03]
[1758714139936,7.75,211.89,211.83,3.64760804]
[1758714140137,7.75,211.92,211.84,3.64760804]
[1758714140337,7.75,211.92,211.85,3.64760804]
[1758714140533,4.246,211.9,211.86,3.64760804]
[1758714140736,66.0381,211.93,211.87,3.64760804]
[1758714140929,7.75,211.92,211.84,0.03]
[1758714141134,7.75,211.92,211.85,3.64541203]
[1758714141335,7.75,211.92,211.86,3.64541203]
[1758714141641,7.75,211.92,211.84,0.03]
[1758714141840,4.2462,211.89,211.85,3.64477687]
[1758714142041,7.75,211.88,211.86,3.64477687]
[1758714142242,7.75,211.88,211.82,0.03]
[1758714142442,4.2462,211.89,211.83,3.64395409]
[1758714142744,11.9962,211.89,211.85,0.03]
[1758714142938,11.9962,211.89,211.86,3.64395409]
[1758714143138,11.9962,211.89,211.85,0.03]
[1758714143335,11.9962,211.89,211.86,3.64425744]